[Event "*** Titled Tuesday Blitz"]
[Site "Chess.com"]
[Date "2020.10.20"]
[Round "10"]
[White "canary2016"]
[Black "Cambek64"]
[Result "0-1"]
[WhiteElo "1954"]
[BlackElo "2305"]
[TimeControl "180+1"]
[EndTime "11:58:42 PDT"]
[Termination "Cambek64 won by checkmate"]

1. d4 {[%clk 0:03:00.9]} 1... d6 {[%clk 0:02:51.3]} 2. c4 {[%clk 0:03:00.3]}
2... e5 {[%clk 0:02:50.4]} 3. dxe5 {[%clk 0:02:55.1]} 3... dxe5 {[%clk
0:02:50.5]} 4. Qxd8+ {[%clk 0:02:53.3]} 4... Kxd8 {[%clk 0:02:51.4]} 5. Nf3
{[%clk 0:02:53.3]} 5... f6 {[%clk 0:02:51.3]} 6. Bd2 {[%clk 0:02:50.5]} 6... Be6
{[%clk 0:02:51]} 7. e3 {[%clk 0:02:49.4]} 7... Nd7 {[%clk 0:02:51.5]} 8. Nc3
{[%clk 0:02:47.5]} 8... c6 {[%clk 0:02:51.8]} 9. Bd3 {[%clk 0:02:45.8]} 9... Kc7
{[%clk 0:02:49.3]} 10. O-O {[%clk 0:02:45.3]} 10... Nc5 {[%clk 0:02:47]} 11. Be2
{[%clk 0:02:43.2]} 11... a5 {[%clk 0:02:47.2]} 12. Rfd1 {[%clk 0:02:40.1]} 12...
Nh6 {[%clk 0:02:46.1]} 13. a3 {[%clk 0:02:37.7]} 13... a4 {[%clk 0:02:44.6]} 14.
Na2 {[%clk 0:02:29.8]} 14... Nf7 {[%clk 0:02:44.2]} 15. Nb4 {[%clk 0:02:29.3]}
15... Nd6 {[%clk 0:02:38.1]} 16. Nd3 {[%clk 0:02:28]} 16... Nxd3 {[%clk
0:02:10.7]} 17. Bxd3 {[%clk 0:02:27.4]} 17... Nxc4 {[%clk 0:02:05.1]} 18. Bc3
{[%clk 0:02:19.8]} 18... b5 {[%clk 0:02:04]} 19. Rac1 {[%clk 0:02:15.7]} 19...
Be7 {[%clk 0:02:03]} 20. Nd2 {[%clk 0:02:11.7]} 20... Nxd2 {[%clk 0:02:01.1]}
21. Rxd2 {[%clk 0:02:11.6]} 21... h6 {[%clk 0:02:00]} 22. Rdc2 {[%clk
0:02:04.5]} 22... Bb3 {[%clk 0:01:47.5]} 23. Rd2 {[%clk 0:02:03.7]} 23... Rhd8
{[%clk 0:01:41.6]} 24. Bxb5 {[%clk 0:01:52.5]} 24... cxb5 {[%clk 0:01:30.4]} 25.
Ba5+ {[%clk 0:01:51.2]} 25... Kb7 {[%clk 0:01:28.6]} 26. Bxd8 {[%clk 0:01:26.2]}
26... Rxd8 {[%clk 0:01:24.8]} 27. Rxd8 {[%clk 0:01:19.3]} 27... Bxd8 {[%clk
0:01:25.2]} 28. Kf1 {[%clk 0:01:18.1]} 28... Be7 {[%clk 0:01:18.1]} 29. Ke1
{[%clk 0:01:16.8]} 29... e4 {[%clk 0:01:18.3]} 30. Kd2 {[%clk 0:01:15.3]} 30...
Bc4 {[%clk 0:01:16.5]} 31. f3 {[%clk 0:01:13.4]} 31... f5 {[%clk 0:01:11.2]} 32.
Rd1 {[%clk 0:01:08.1]} 32... Bf6 {[%clk 0:01:09.9]} 33. Kc1 {[%clk 0:01:06.6]}
33... Bd3 {[%clk 0:01:09.6]} 34. g4 {[%clk 0:01:00.3]} 34... g6 {[%clk
0:01:04.3]} 35. fxe4 {[%clk 0:00:53.2]} 35... fxe4 {[%clk 0:01:02.6]} 36. Rg1
{[%clk 0:00:40.7]} 36... Bh4 {[%clk 0:01:00.1]} 37. Rg2 {[%clk 0:00:36.8]} 37...
Kc6 {[%clk 0:00:59.3]} 38. Kd2 {[%clk 0:00:34.4]} 38... Kd5 {[%clk 0:00:59.4]}
39. h3 {[%clk 0:00:26.7]} 39... Kc4 {[%clk 0:00:55.8]} 40. Kc1 {[%clk
0:00:23.3]} 40... Kb3 {[%clk 0:00:49.9]} 41. Rd2 {[%clk 0:00:17.1]} 41... Bg5
{[%clk 0:00:48.8]} 42. Kd1 {[%clk 0:00:10.1]} 42... Bxe3 {[%clk 0:00:49]} 43.
Rg2 {[%clk 0:00:09.8]} 43... Bd4 {[%clk 0:00:48]} 44. Kc1 {[%clk 0:00:07]} 44...
g5 {[%clk 0:00:47.7]} 45. h4 {[%clk 0:00:05.5]} 45... gxh4 {[%clk 0:00:46.5]}
46. Rh2 {[%clk 0:00:05.8]} 46... Bf6 {[%clk 0:00:45.6]} 47. Rh3 {[%clk
0:00:04.6]} 47... Bg5+ {[%clk 0:00:45.6]} 48. Kd1 {[%clk 0:00:03.8]} 48... Kxb2
{[%clk 0:00:45.6]} 49. Ke1 {[%clk 0:00:03.1]} 49... Kxa3 {[%clk 0:00:45.4]} 50.
Kd1 {[%clk 0:00:03]} 50... Kb3 {[%clk 0:00:45.1]} 51. Ke1 {[%clk 0:00:02.8]}
51... b4 {[%clk 0:00:45.2]} 52. Kd1 {[%clk 0:00:03]} 52... a3 {[%clk 0:00:45.7]}
53. Ke1 {[%clk 0:00:03.4]} 53... a2 {[%clk 0:00:45.9]} 54. Kf2 {[%clk
0:00:03.6]} 54... a1=Q {[%clk 0:00:45.4]} 55. Rh1 {[%clk 0:00:02.8]} 55... Qb2+
{[%clk 0:00:41.3]} 56. Kg1 {[%clk 0:00:01.1]} 56... Be3# {[%clk 0:00:37.3]} 0-1

[Event "*** Titled Tuesday Blitz"]
[Site "Chess.com"]
[Date "2020.10.20"]
[Round "10"]
[White "Stalri"]
[Black "elohunter1999"]
[Result "0-1"]
[WhiteElo "2204"]
[BlackElo "2522"]
[TimeControl "180+1"]
[EndTime "11:58:44 PDT"]
[Termination "elohunter1999 won by resignation"]

1. d4 {[%clk 0:02:36.5]} 1... Nf6 {[%clk 0:02:57.9]} 2. c4 {[%clk 0:02:36.2]}
2... g6 {[%clk 0:02:58.1]} 3. Nc3 {[%clk 0:02:32.7]} 3... d5 {[%clk 0:02:57.4]}
4. e3 {[%clk 0:02:28]} 4... Bg7 {[%clk 0:02:57]} 5. Nf3 {[%clk 0:02:27.4]} 5...
O-O {[%clk 0:02:56.1]} 6. h4 {[%clk 0:02:28]} 6... c5 {[%clk 0:02:52.4]} 7. h5
{[%clk 0:02:27.9]} 7... cxd4 {[%clk 0:02:46.7]} 8. exd4 {[%clk 0:02:27]} 8...
Bg4 {[%clk 0:02:46.5]} 9. cxd5 {[%clk 0:02:23.9]} 9... Nxd5 {[%clk 0:02:39.1]}
10. hxg6 {[%clk 0:02:22.5]} 10... hxg6 {[%clk 0:02:37.7]} 11. Bh6 {[%clk
0:02:20.9]} 11... Bxh6 {[%clk 0:02:27]} 12. Rxh6 {[%clk 0:02:18.4]} 12... Kg7
{[%clk 0:02:27.6]} 13. Qd2 {[%clk 0:02:17]} 13... Bxf3 {[%clk 0:02:24.2]} 14.
gxf3 {[%clk 0:02:15.7]} 14... Nxc3 {[%clk 0:02:12.2]} 15. bxc3 {[%clk
0:02:15.3]} 15... Nc6 {[%clk 0:02:09.4]} 16. Bd3 {[%clk 0:02:09.6]} 16... Rh8
{[%clk 0:02:07.4]} 17. Rxh8 {[%clk 0:02:09]} 17... Qxh8 {[%clk 0:02:08.3]} 18.
O-O-O {[%clk 0:02:08.8]} 18... Qh4 {[%clk 0:02:05.6]} 19. Qe3 {[%clk 0:02:05.2]}
19... Rc8 {[%clk 0:01:59.3]} 20. Kb2 {[%clk 0:02:01]} 20... e6 {[%clk
0:01:53.6]} 21. f4 {[%clk 0:02:00.8]} 21... Ne7 {[%clk 0:01:43]} 22. Qe5+ {[%clk
0:01:58]} 22... Qf6 {[%clk 0:01:41]} 23. Rh1 {[%clk 0:01:56.8]} 23... Nd5 {[%clk
0:01:33.9]} 24. c4 {[%clk 0:01:56.6]} 24... Qxe5 {[%clk 0:01:32.7]} 25. fxe5
{[%clk 0:01:56.6]} 25... Nb4 {[%clk 0:01:21.8]} 26. Kc3 {[%clk 0:01:49.6]} 26...
Nd5+ {[%clk 0:01:14.5]} 27. Kd2 {[%clk 0:01:48.9]} 27... Nb6 {[%clk 0:01:11]}
28. Rc1 {[%clk 0:01:44.9]} 28... Kf8 {[%clk 0:01:06.3]} 29. Kc3 {[%clk
0:01:27.8]} 29... Ke7 {[%clk 0:01:04]} 30. Kb3 {[%clk 0:01:25.6]} 30... Rd8
{[%clk 0:01:02.7]} 31. Kc3 {[%clk 0:01:24.1]} 31... Na4+ {[%clk 0:01:02.1]} 32.
Kb4 {[%clk 0:01:12.3]} 32... Rxd4 {[%clk 0:00:59.9]} 33. Kxa4 {[%clk 0:01:08.9]}
33... Rxd3 {[%clk 0:00:59.8]} 34. Rb1 {[%clk 0:01:08.5]} 34... b6 {[%clk
0:00:58.7]} 35. Kb5 {[%clk 0:01:08.4]} 35... Ra3 {[%clk 0:00:57.6]} 36. Kc6
{[%clk 0:01:04]} 36... Rxa2 {[%clk 0:00:56.5]} 37. Rd1 {[%clk 0:01:04.6]} 37...
Ra5 {[%clk 0:00:55.1]} 38. Rd7+ {[%clk 0:01:02.3]} 38... Kf8 {[%clk 0:00:55.4]}
39. Kd6 {[%clk 0:00:56.9]} 39... Rc5 {[%clk 0:00:50.3]} 40. Rxa7 {[%clk
0:00:41.6]} 40... Rxc4 {[%clk 0:00:50.4]} 41. Rb7 {[%clk 0:00:39]} 41... Rd4+
{[%clk 0:00:44.5]} 42. Kc6 {[%clk 0:00:36.9]} 42... Rd5 {[%clk 0:00:42.1]} 43.
f4 {[%clk 0:00:36.9]} 43... Rd4 {[%clk 0:00:42.3]} 44. Rb8+ {[%clk 0:00:31.4]}
44... Kg7 {[%clk 0:00:42.2]} 45. Rxb6 {[%clk 0:00:31.6]} 45... Rxf4 {[%clk
0:00:42.1]} 46. Rb5 {[%clk 0:00:27.7]} 46... g5 {[%clk 0:00:41.4]} 47. Kd6
{[%clk 0:00:24.9]} 47... Rd4+ {[%clk 0:00:41.3]} 48. Ke7 {[%clk 0:00:24.7]}
48... Rd5 {[%clk 0:00:40.7]} 49. Rb1 {[%clk 0:00:20.1]} 49... Rxe5 {[%clk
0:00:40.8]} 50. Rg1 {[%clk 0:00:18.2]} 50... Rf5 {[%clk 0:00:40]} 51. Rg2 {[%clk
0:00:17.8]} 51... Kg6 {[%clk 0:00:39.8]} 52. Rg1 {[%clk 0:00:17.4]} 52... Rf4
{[%clk 0:00:40]} 53. Kf8 {[%clk 0:00:16.4]} 53... g4 {[%clk 0:00:40]} 54. Ke7
{[%clk 0:00:16.3]} 54... Kg5 {[%clk 0:00:39.9]} 55. Kd6 {[%clk 0:00:16.6]} 55...
Rf3 {[%clk 0:00:40.1]} 56. Ke5 {[%clk 0:00:16.9]} 56... g3 {[%clk 0:00:37.9]}
57. Ke4 {[%clk 0:00:17.2]} 57... Kg4 {[%clk 0:00:38.4]} 58. Rg2 {[%clk
0:00:16.9]} 58... f5+ {[%clk 0:00:38.4]} 59. Kd4 {[%clk 0:00:16.6]} 59... Rf2
{[%clk 0:00:38.7]} 60. Rg1 {[%clk 0:00:17.1]} 60... g2 {[%clk 0:00:38.4]} 61.
Ke3 {[%clk 0:00:17.2]} 61... Kg3 {[%clk 0:00:38.9]} 62. Ra1 {[%clk 0:00:15.1]}
62... Rf1 {[%clk 0:00:38.7]} 0-1

[Event "*** Titled Tuesday Blitz"]
[Site "Chess.com"]
[Date "2020.10.20"]
[Round "10"]
[White "ExtremeLearner"]
[Black "NotFischer"]
[Result "1/2-1/2"]
[WhiteElo "2376"]
[BlackElo "2269"]
[TimeControl "180+1"]
[EndTime "11:58:45 PDT"]
[Termination "Game drawn by repetition"]

1. d4 {[%clk 0:03:00.9]} 1... Nf6 {[%clk 0:02:59.7]} 2. Nf3 {[%clk 0:03:01.1]}
2... e6 {[%clk 0:03:00]} 3. g3 {[%clk 0:03:00.1]} 3... d5 {[%clk 0:03:00.3]} 4.
Bg2 {[%clk 0:02:55.4]} 4... Be7 {[%clk 0:03:00.3]} 5. O-O {[%clk 0:02:56]} 5...
O-O {[%clk 0:03:00.4]} 6. c4 {[%clk 0:02:55.3]} 6... c6 {[%clk 0:03:00.8]} 7.
Qc2 {[%clk 0:02:53.3]} 7... Nbd7 {[%clk 0:03:01.1]} 8. b3 {[%clk 0:02:51.4]}
8... b6 {[%clk 0:03:01.5]} 9. Bb2 {[%clk 0:02:46.2]} 9... Bb7 {[%clk 0:03:01.5]}
10. Rd1 {[%clk 0:02:42.8]} 10... Rc8 {[%clk 0:03:01.5]} 11. Nc3 {[%clk
0:02:42.5]} 11... Re8 {[%clk 0:03:00.2]} 12. e4 {[%clk 0:02:40.6]} 12... dxe4
{[%clk 0:03:01.1]} 13. Ng5 {[%clk 0:02:40.7]} 13... h6 {[%clk 0:02:58.5]} 14.
Ngxe4 {[%clk 0:02:40.5]} 14... Nxe4 {[%clk 0:02:59.4]} 15. Nxe4 {[%clk
0:02:41.4]} 15... Qc7 {[%clk 0:02:59]} 16. Rac1 {[%clk 0:02:40.2]} 16... Bf8
{[%clk 0:02:57.4]} 17. h4 {[%clk 0:02:36.5]} 17... c5 {[%clk 0:02:57.8]} 18. d5
{[%clk 0:02:35.8]} 18... exd5 {[%clk 0:02:54.4]} 19. cxd5 {[%clk 0:02:36.7]}
19... Ne5 {[%clk 0:02:46.7]} 20. Qc3 {[%clk 0:01:52.4]} 20... Rcd8 {[%clk
0:02:09]} 21. d6 {[%clk 0:01:09.5]} 21... Qd7 {[%clk 0:02:08.1]} 22. Re1 {[%clk
0:00:21.7]} 22... Ng4 {[%clk 0:02:07.2]} 23. Rcd1 {[%clk 0:00:19.6]} 23... Qf5
{[%clk 0:01:36.2]} 24. f3 {[%clk 0:00:11.4]} 24... Bxe4 {[%clk 0:01:27.2]} 25.
fxg4 {[%clk 0:00:10.5]} 25... Qxg4 {[%clk 0:00:48]} 26. d7 {[%clk 0:00:09.6]}
26... Re7 {[%clk 0:00:31.8]} 27. Bxe4 {[%clk 0:00:07.9]} 27... Rxe4 {[%clk
0:00:31]} 28. Kf2 {[%clk 0:00:07.1]} 28... Qf5+ {[%clk 0:00:28.8]} 29. Qf3
{[%clk 0:00:06.4]} 29... Qxf3+ {[%clk 0:00:24]} 30. Kxf3 {[%clk 0:00:07.3]}
30... Rxe1 {[%clk 0:00:23.1]} 31. Rxe1 {[%clk 0:00:08.2]} 31... Rxd7 {[%clk
0:00:22.1]} 32. Re8 {[%clk 0:00:08.5]} 32... f6 {[%clk 0:00:22.6]} 33. Ra8
{[%clk 0:00:07.3]} 33... Kf7 {[%clk 0:00:22.9]} 34. Bc1 {[%clk 0:00:06.8]} 34...
Bd6 {[%clk 0:00:22.8]} 35. h5 {[%clk 0:00:05]} 35... Be5 {[%clk 0:00:22.7]} 36.
Be3 {[%clk 0:00:04.5]} 36... f5 {[%clk 0:00:22.4]} 37. Bf4 {[%clk 0:00:03.9]}
37... Bxf4 {[%clk 0:00:17.2]} 38. Kxf4 {[%clk 0:00:04.8]} 38... Kf6 {[%clk
0:00:15]} 39. Rf8+ {[%clk 0:00:05.1]} 39... Ke6 {[%clk 0:00:15.5]} 40. Rg8
{[%clk 0:00:05.5]} 40... Rd4+ {[%clk 0:00:14.1]} 41. Kf3 {[%clk 0:00:05.3]}
41... Kf7 {[%clk 0:00:14.5]} 42. Ra8 {[%clk 0:00:04.9]} 42... Rd7 {[%clk
0:00:14.5]} 43. Kf4 {[%clk 0:00:05.3]} 43... Kf6 {[%clk 0:00:14.1]} 44. Rf8+
{[%clk 0:00:04.9]} 44... Ke6 {[%clk 0:00:14.5]} 45. Re8+ {[%clk 0:00:05.2]}
45... Kf7 {[%clk 0:00:14.5]} 46. Ra8 {[%clk 0:00:05.1]} 1/2-1/2

[Event "*** Titled Tuesday Blitz"]
[Site "Chess.com"]
[Date "2020.10.20"]
[Round "10"]
[White "rugbyclub"]
[Black "MaxLeto"]
[Result "1-0"]
[WhiteElo "2190"]
[BlackElo "2297"]
[TimeControl "180+1"]
[EndTime "11:58:46 PDT"]
[Termination "rugbyclub won by resignation"]

1. c4 {[%clk 0:03:00.1]} 1... e5 {[%clk 0:02:59.7]} 2. Nc3 {[%clk 0:02:59.5]}
2... Nc6 {[%clk 0:02:59.4]} 3. Nf3 {[%clk 0:02:58.9]} 3... Nf6 {[%clk
0:02:58.6]} 4. e3 {[%clk 0:02:59]} 4... Bb4 {[%clk 0:02:51.6]} 5. Qc2 {[%clk
0:02:58.3]} 5... O-O {[%clk 0:02:50.5]} 6. Nd5 {[%clk 0:02:57]} 6... Re8 {[%clk
0:02:44.7]} 7. Qf5 {[%clk 0:02:55.6]} 7... d6 {[%clk 0:02:10.8]} 8. Nxf6+ {[%clk
0:02:54.1]} 8... Qxf6 {[%clk 0:02:11.5]} 9. Qxf6 {[%clk 0:02:53.6]} 9... gxf6
{[%clk 0:02:12.4]} 10. a3 {[%clk 0:02:53.1]} 10... Bc5 {[%clk 0:02:10.5]} 11. b4
{[%clk 0:02:53.1]} 11... Bb6 {[%clk 0:02:10.5]} 12. Bb2 {[%clk 0:02:48.9]} 12...
a5 {[%clk 0:02:07]} 13. b5 {[%clk 0:02:46.5]} 13... Nd8 {[%clk 0:02:07]} 14. Be2
{[%clk 0:02:32.1]} 14... Ne6 {[%clk 0:02:03.4]} 15. O-O-O {[%clk 0:02:24.1]}
15... Nc5 {[%clk 0:01:57.6]} 16. d4 {[%clk 0:02:23.9]} 16... Nb3+ {[%clk
0:01:33.4]} 17. Kc2 {[%clk 0:02:20.5]} 17... a4 {[%clk 0:01:33.9]} 18. Nd2
{[%clk 0:02:16]} 18... exd4 {[%clk 0:01:02.3]} 19. Nxb3 {[%clk 0:02:15.3]} 19...
axb3+ {[%clk 0:00:58.1]} 20. Kxb3 {[%clk 0:02:15.7]} 20... dxe3 {[%clk
0:00:58.6]} 21. Bxf6 {[%clk 0:02:05]} 21... exf2 {[%clk 0:00:50.2]} 22. Bd3
{[%clk 0:01:57.9]} 22... Bg4 {[%clk 0:00:47]} 23. Rd2 {[%clk 0:01:49]} 23... Re1
{[%clk 0:00:28.6]} 24. Rf1 {[%clk 0:01:48.1]} 24... Rae8 {[%clk 0:00:23.8]} 25.
h3 {[%clk 0:01:16.1]} 25... Bd1+ {[%clk 0:00:16.6]} 26. Rxd1 {[%clk 0:01:01.6]}
26... Rxd1 {[%clk 0:00:16.3]} 27. Rxd1 {[%clk 0:01:02.2]} 27... Re3 {[%clk
0:00:16.3]} 28. Kc2 {[%clk 0:00:54.2]} 28... Re1 {[%clk 0:00:15.2]} 29. Bc3
{[%clk 0:00:48.9]} 29... Rg1 {[%clk 0:00:11.1]} 30. g4 {[%clk 0:00:39]} 30...
Kf8 {[%clk 0:00:06.5]} 31. a4 {[%clk 0:00:32.1]} 31... Ke7 {[%clk 0:00:06.1]}
32. a5 {[%clk 0:00:32.2]} 32... Bc5 {[%clk 0:00:06.3]} 33. a6 {[%clk 0:00:31.2]}
33... bxa6 {[%clk 0:00:06.6]} 34. bxa6 {[%clk 0:00:31.7]} 34... Kd7 {[%clk
0:00:07.2]} 35. Bb4 {[%clk 0:00:24]} 35... Ba7 {[%clk 0:00:03.5]} 36. Kd2 {[%clk
0:00:18.3]} 36... Kc8 {[%clk 0:00:02.9]} 37. Ke2 {[%clk 0:00:17]} 37... Kb8
{[%clk 0:00:02.9]} 38. Rf1 {[%clk 0:00:16]} 38... Bb6 {[%clk 0:00:02.6]} 39. Be4
{[%clk 0:00:15.3]} 39... Rg3 {[%clk 0:00:02.3]} 40. Bd2 {[%clk 0:00:14.9]} 40...
Ka7 {[%clk 0:00:01.9]} 41. Bb7 {[%clk 0:00:13.1]} 41... Rxh3 {[%clk 0:00:02]}
42. Rxf2 {[%clk 0:00:12.7]} 42... Bxf2 {[%clk 0:00:01.4]} 43. Kxf2 {[%clk
0:00:13.1]} 43... Rh2+ {[%clk 0:00:02.3]} 44. Ke3 {[%clk 0:00:13.3]} 44... Rg2
{[%clk 0:00:02.8]} 45. Bc3 {[%clk 0:00:12.3]} 45... Rxg4 {[%clk 0:00:03]} 46.
Bd4+ {[%clk 0:00:12.5]} 46... Kb8 {[%clk 0:00:03]} 47. Bf3 {[%clk 0:00:11.6]}
47... Rg5 {[%clk 0:00:03.2]} 48. a7+ {[%clk 0:00:11.8]} 48... Kc8 {[%clk
0:00:02.6]} 49. a8=Q+ {[%clk 0:00:12.7]} 49... Kd7 {[%clk 0:00:03.5]} 50. Qc6+
{[%clk 0:00:12.9]} 50... Ke6 {[%clk 0:00:04.4]} 1-0

[Event "*** Titled Tuesday Blitz"]
[Site "Chess.com"]
[Date "2020.10.20"]
[Round "10"]
[White "TomiLen"]
[Black "K_A_S_T_O_R"]
[Result "1-0"]
[WhiteElo "2646"]
[BlackElo "2812"]
[TimeControl "180+1"]
[EndTime "11:58:47 PDT"]
[Termination "TomiLen won by resignation"]

1. c4 {[%clk 0:03:00.9]} 1... c5 {[%clk 0:02:58.1]} 2. Nf3 {[%clk 0:03:00]} 2...
Nf6 {[%clk 0:02:58.1]} 3. Nc3 {[%clk 0:02:59.7]} 3... e6 {[%clk 0:02:57.8]} 4.
e3 {[%clk 0:02:57.8]} 4... d5 {[%clk 0:02:54.9]} 5. d4 {[%clk 0:02:57.6]} 5...
cxd4 {[%clk 0:02:55.5]} 6. exd4 {[%clk 0:02:57.3]} 6... Bb4 {[%clk 0:02:55.5]}
7. cxd5 {[%clk 0:02:56]} 7... Nxd5 {[%clk 0:02:55.2]} 8. Bd2 {[%clk 0:02:56.2]}
8... Nc6 {[%clk 0:02:55.6]} 9. Bd3 {[%clk 0:02:56]} 9... O-O {[%clk 0:02:56.1]}
10. O-O {[%clk 0:02:55.4]} 10... Nf6 {[%clk 0:02:56.3]} 11. Be3 {[%clk
0:02:52.7]} 11... b6 {[%clk 0:02:55.7]} 12. Qe2 {[%clk 0:02:51.1]} 12... Be7
{[%clk 0:02:52.8]} 13. Rfd1 {[%clk 0:02:49.1]} 13... Nb4 {[%clk 0:02:52.5]} 14.
Bc4 {[%clk 0:02:45.9]} 14... Bb7 {[%clk 0:02:52]} 15. Ne5 {[%clk 0:02:44.1]}
15... Rc8 {[%clk 0:02:48.9]} 16. Rac1 {[%clk 0:02:40.1]} 16... Nbd5 {[%clk
0:02:47.2]} 17. Nxd5 {[%clk 0:02:33]} 17... Nxd5 {[%clk 0:02:45.6]} 18. Ba6
{[%clk 0:02:28.2]} 18... Rxc1 {[%clk 0:02:42.5]} 19. Bxc1 {[%clk 0:02:19.7]}
19... Qc8 {[%clk 0:02:24.2]} 20. Bxb7 {[%clk 0:02:17.6]} 20... Qxb7 {[%clk
0:02:24.3]} 21. Qf3 {[%clk 0:02:16.2]} 21... Bd6 {[%clk 0:02:24]} 22. Bd2 {[%clk
0:02:08.3]} 22... Rc8 {[%clk 0:02:21.7]} 23. g3 {[%clk 0:01:59.7]} 23... Rc7
{[%clk 0:02:17.1]} 24. h4 {[%clk 0:01:56.3]} 24... Qc8 {[%clk 0:02:14.9]} 25. h5
{[%clk 0:01:51.8]} 25... h6 {[%clk 0:02:15]} 26. Ng4 {[%clk 0:01:39.1]} 26...
Bf8 {[%clk 0:02:06.8]} 27. Ne5 {[%clk 0:01:38.5]} 27... Bd6 {[%clk 0:02:02.3]}
28. Ng4 {[%clk 0:01:38.4]} 28... Qf8 {[%clk 0:02:02.7]} 29. Rc1 {[%clk
0:01:30.5]} 29... Rxc1+ {[%clk 0:02:00.8]} 30. Bxc1 {[%clk 0:01:31.4]} 30... Qe7
{[%clk 0:01:45.6]} 31. Bd2 {[%clk 0:01:29.5]} 31... Qd7 {[%clk 0:01:44]} 32. Ne3
{[%clk 0:01:26.6]} 32... Nf6 {[%clk 0:01:38.1]} 33. d5 {[%clk 0:01:22.5]} 33...
Be5 {[%clk 0:01:36]} 34. Nc4 {[%clk 0:01:16.2]} 34... Bc7 {[%clk 0:01:30.2]} 35.
dxe6 {[%clk 0:01:07.5]} 35... Qxe6 {[%clk 0:01:30.6]} 36. b3 {[%clk 0:01:05.2]}
36... b5 {[%clk 0:01:18.9]} 37. Ne3 {[%clk 0:00:53.7]} 37... Qh3 {[%clk
0:01:10.4]} 38. Bc3 {[%clk 0:00:45.5]} 38... Qxh5 {[%clk 0:01:09.2]} 39. Qa8+
{[%clk 0:00:45]} 39... Kh7 {[%clk 0:01:07.5]} 40. Bxf6 {[%clk 0:00:45]} 40...
gxf6 {[%clk 0:01:07.8]} 41. Qxa7 {[%clk 0:00:44.4]} 41... Qe5 {[%clk 0:01:06.6]}
42. Qb7 {[%clk 0:00:42.6]} 42... Kg6 {[%clk 0:01:04.4]} 43. Kg2 {[%clk
0:00:42.7]} 43... Bd6 {[%clk 0:01:04]} 44. Qc8 {[%clk 0:00:41]} 44... Qe4+
{[%clk 0:01:00]} 45. Kg1 {[%clk 0:00:39.1]} 45... Kh7 {[%clk 0:00:56.8]} 46.
Qf5+ {[%clk 0:00:37.4]} 46... Qxf5 {[%clk 0:00:56.6]} 47. Nxf5 {[%clk
0:00:38.3]} 47... Ba3 {[%clk 0:00:56.6]} 48. Nd4 {[%clk 0:00:37.9]} 48... b4
{[%clk 0:00:56.9]} 49. Nc2 {[%clk 0:00:38]} 49... Kg6 {[%clk 0:00:54.7]} 50.
Nxa3 {[%clk 0:00:37.5]} 50... bxa3 {[%clk 0:00:55.6]} 51. f4 {[%clk 0:00:35.2]}
51... Kf5 {[%clk 0:00:55.8]} 52. Kf2 {[%clk 0:00:35.4]} 52... Ke4 {[%clk
0:00:56.2]} 53. Ke2 {[%clk 0:00:35.3]} 53... h5 {[%clk 0:00:54.2]} 54. Kd2
{[%clk 0:00:27]} 54... Kd4 {[%clk 0:00:54.3]} 55. f5 {[%clk 0:00:24.7]} 55...
Ke4 {[%clk 0:00:46.3]} 56. b4 {[%clk 0:00:24.1]} 56... Kd4 {[%clk 0:00:45.4]}
57. Kc2 {[%clk 0:00:24.1]} 57... Kc4 {[%clk 0:00:45.4]} 58. b5 {[%clk 0:00:24]}
58... Kxb5 {[%clk 0:00:45.5]} 59. Kb3 {[%clk 0:00:24.6]} 59... Kc5 {[%clk
0:00:43.4]} 60. Kxa3 {[%clk 0:00:24.9]} 60... Kd4 {[%clk 0:00:44.1]} 61. Kb3
{[%clk 0:00:25]} 61... Ke5 {[%clk 0:00:45]} 62. a4 {[%clk 0:00:25.1]} 62... Kxf5
{[%clk 0:00:45.9]} 63. a5 {[%clk 0:00:25.6]} 63... h4 {[%clk 0:00:43.1]} 64.
gxh4 {[%clk 0:00:23.9]} 64... Kg4 {[%clk 0:00:44]} 65. a6 {[%clk 0:00:24.2]}
65... f5 {[%clk 0:00:44.5]} 66. a7 {[%clk 0:00:24.8]} 66... f4 {[%clk
0:00:45.4]} 67. a8=Q {[%clk 0:00:25.4]} 67... Kxh4 {[%clk 0:00:45.4]} 68. Qf3
{[%clk 0:00:24.8]} 68... Kg5 {[%clk 0:00:45.6]} 69. Kc2 {[%clk 0:00:24.8]} 1-0